[Event "12th WLC Weekend 2022"]
[Site "Eindhoven"]
[Date "2022.05.15"]
[Round "5.1"]
[White "Roebers, Eline"]
[Black "Beerdsen, Thomas"]
[Result "1/2-1/2"]
[ECO "B99"]
[WhiteElo "2369"]
[BlackElo "2497"]
[Annotator "TA"]
[PlyCount "66"]
[EventDate "2022.05.13"]
[EventType "swiss"]
[EventCountry "NED"]
[SourceTitle "playchess.com"]
[Source "ChessBase"]
[SourceQuality "1"]
[TimeControl "5400+30"]

{[%evp 18,66,34,8,24,-27,-22,-22,-23,-37,-32,-32,0,0,44,47,43,-11,-16,-22,10,0,0,0,2,0,0,-8,-12,-56,-14,-23,-15,-21,0,-36,-39,-39,-16,-15,-7,-10,0,0,0,0,0,0,0,0,6]} 1. e4 {[%emt 0:00:02]} c5 {[%emt 0:04:05]} 2. Nf3 {[%emt 0:00:04]} d6 {[%emt 0:00:07]} 3. d4 {[%emt 0:00:02]} cxd4 {[%emt 0:00:08]} 4. Nxd4 {[%emt 0:00:02]} Nf6 {[%emt 0:00:09]} 5. Nc3 {[%emt 0:00:05]} a6 {[%emt 0:00:05]} 6. Bg5 {[%emt 0:00:02]} e6 {[%emt 0:01:04]} 7. f4 {[%emt 0:00:02][%cal Bf2f4,Bf4f5][%mdl 32]} Be7 {[%emt 0:00:07]} 8. Qf3 {[%emt 0:00:02]} Qc7 {[%emt 0:00:09]} 9. O-O-O {[%emt 0:00:03]} Nbd7 {[%emt 0:00:27]} 10. f5 {[%emt 0:00:22]} e5 {[%emt 0:10:37] B99: Sicilian Najdorf: 6 Bg5 e6 7 f4 Be7 8 Qf3 Qc7 9 0-0-0 Nbd7.} (10... Ne5 $5 {[%cal Re5f3]} 11. Qg3 Nh5 $11) 11. Nde2 {[%emt 0:00:07]} (11. Nb3 $142) 11... b5 $1 $11 {[%emt 0:02:22]} 12. Bxf6 {[%emt 0:00:46]} Nxf6 {[%emt 0:01:38]} 13. Nd5 {[%emt 0:01:16]} Nxd5 {[%emt 0:01:09]} 14. exd5 {[%emt 0:00:10]} Bb7 {[%emt 0:17:01]} 15. Ng3 {[%emt 0:01:43]} O-O-O {[%emt 0:04:44]} 16. Kb1 {[%emt 0:09:44]} Kb8 {[%emt 0:01:20] [#]} 17. c4 $146 {[%emt 0:15:27]} ({White should try} 17. Be2 $14) ({Predecessor:} 17. Qb3 Rc8 18. Ne4 Qa5 19. c4 bxc4 20. Bxc4 Rc7 21. Rc1 Rhc8 22. Rhd1 Ka7 23. a3 {1-0 (37) Berg,E (2558)-Mikalsen,E (2286) Oslo 2015}) 17... Rc8 {[%emt 0:07:36]} 18. Rc1 {[%emt 0:08:43]} e4 {[%emt 0:10:37]} 19. Qf4 {[%emt 0:08:24]} Bf6 {[%emt 0:04:04][%cal Rb5c4]} 20. Nxe4 {[%emt 0:04:06]} Be5 {[%emt 0:00:14] A strong pair of Bishops.} 21. Qd2 {[%emt 0:04:08]} (21. Qe3 {is more complex.} Qa5 22. Nd2 Bf6 23. Bd3) 21... Qb6 {[%emt 0:07:11]} 22. Be2 {[%emt 0:03:29]} bxc4 {[%emt 0:05:27]} 23. Rxc4 {[%emt 0:06:57]} Rxc4 {[%emt 0:00:06]} ({Much worse is} 23... Bxd5 24. Rb4 Bxe4+ 25. Rxe4 $11 (25. Ka1 Rc6 $11)) (23... a5 $5 {[%cal Rb7d5]} 24. Rcc1 {[#]} Bxd5 $1 $15) 24. Bxc4 {[%emt 0:00:03]} Rc8 {[%emt 0:02:56]} 25. Rc1 {[%emt 0:05:48]} g6 {[%emt 0:05:23][%mdl 1024] Black has compensation.} 26. f6 {[%emt 0:06:41]} h6 {[%emt 0:03:15]} 27. g3 {[%emt 0:07:32]} g5 {[%emt 0:01:41]} 28. a3 {[%emt 0:05:38] The position is equal.} Rc7 {[%emt 0:01:54]} 29. Rc2 {[%emt 0:00:59]} Ka7 {[%emt 0:00:53]} 30. Qd3 {[%emt 0:02:56] Active counter play!} Bc8 {[%emt 0:01:21]} 31. Qb3 {[%emt 0:02:12]} Bf5 {[%emt 0:04:20]} (31... Qd4 $5 32. Qd3 (32. Bd3 $2 Rb7 $19) 32... Qg1+ 33. Qf1 Qd4 $11) 32. Qxb6+ {[%emt 0:01:22]} Kxb6 {[%emt 0:00:05]} 33. Bd3 {[%emt 0:00:06]} Rxc2 {[%emt 0:00:35] Weighted Error Value: White=0.15 (very precise) /Black=0.10 (very precise)} 1/2-1/2

[Event "12th WLC Weekend 2022"]
[Site "Eindhoven"]
[Date "2022.05.15"]
[Round "5.2"]
[White "Van Roon, Sjoerd"]
[Black "Elgersma, Onno"]
[Result "0-1"]
[ECO "B12"]
[WhiteElo "2264"]
[BlackElo "2303"]
[Annotator "TA"]
[PlyCount "130"]
[EventDate "2022.05.13"]
[EventType "swiss"]
[EventCountry "NED"]
[SourceTitle "playchess.com"]
[Source "ChessBase"]
[SourceQuality "1"]
[TimeControl "5400+30"]

{[%evp 11,130,20,24,-28,-22,-30,-38,-33,-18,-40,-41,-95,-83,-73,-26,-19,-21,-14,0,-10,-15,-21,-21,-21,-19,-22,-21,-22,-16,-22,-20,-27,-22,-29,-18,-22,0,-40,-34,-54,-20,-31,0,0,0,0,0,0,0,0,0,-18,0,-33,-30,-65,0,0,0,0,0,0,82,6,6,7,0,0,4,0,7,0,0,-31,-4,-8,0,0,0,0,0,0,0,0,0,-8,-8,-6,0,-4,0,-265,-271,-29987,-29988,-29988,-29989,-29989,-2129,-2120,-2068,-706,0,-1050,-821,-812,-811,-648,-576,-1858,-1464,-5816,-4641,-29978,-29979,-29985,-29986,-29983,-29983,-29983,-29981]} 1. e4 {[%emt 0:00:02]} c6 {[%emt 0:02:06]} 2. d4 {[%emt 0:00:04]} d5 {[%emt 0:00:10]} 3. e5 {[%emt 0:00:03]} Bf5 {[%emt 0:00:16]} 4. Nf3 {[%emt 0:00:05]} e6 {[%emt 0:00:12]} 5. Be2 {[%emt 0:00:04]} c5 {[%emt 0:02:48]} 6. Be3 {[%emt 0:05:25]} Qb6 {[%emt 0:00:05]} 7. Nbd2 {[%emt 0:05:24] B12: Caro-Kann: Advance Variation.} (7. Nc3 $142) 7... Nc6 $11 {[%emt 0:15:15][%cal Rc5d4]} 8. dxc5 {[%emt 0:02:32]} Bxc5 {[%emt 0:00:30]} 9. Bxc5 {[%emt 0:01:53] Black is slightly better.} Qxc5 {[%emt 0:00:05]} 10. c3 {[%emt 0:04:38]} Qb6 {[%emt 0:02:09]} 11. Nb3 {[%emt 0:00:25]} (11. Qb3 $15) 11... Nge7 {[%emt 0:01:15]} 12. O-O {[%emt 0:00:55] [#]} O-O {[%emt 0:07:09]} (12... Be4 $1 $17) 13. Bd3 {[%emt 0:04:27]} Bxd3 {[%emt 0:04:32]} 14. Qxd3 {[%emt 0:00:05]} Ng6 {[%emt 0:00:05] [#]} 15. Rae1 $146 {[%emt 0:02:17]} ({Predecessor:} 15. Rfe1 Qc7 16. Nbd4 Ncxe5 17. Nxe5 Nxe5 18. Qg3 f6 19. Nxe6 Qf7 20. Nxf8 Rxf8 21. Rad1 {1-0 (47) Candamil Neira,G (1800)-Jurado Perez,O (1835) Pasao 1997}) 15... a5 {[%emt 0:06:37][%cal Ba7a5,Ba5a4][%mdl 32]} 16. Qe3 {[%emt 0:05:11]} Qxe3 {[%emt 0:03:08]} 17. Rxe3 {[%emt 0:00:04]} a4 {[%emt 0:00:17]} 18. Nbd4 {[%emt 0:01:24]} Ra6 {[%emt 0:02:23]} 19. g3 {[%emt 0:06:03]} Rb6 {[%emt 0:01:00]} 20. Rb1 {[%emt 0:01:22]} Rc8 {[%emt 0:00:49]} 21. Nc2 {[%emt 0:03:14]} Kf8 {[%emt 0:02:23]} 22. a3 {[%emt 0:01:18]} Ke7 {[%emt 0:02:24]} 23. Nb4 {[%emt 0:00:24]} Kf8 {[%emt 0:04:23]} 24. Re2 {[%emt 0:06:14]} Nxb4 {[%emt 0:05:04]} 25. cxb4 {[%emt 0:11:43]} Rc4 {[%emt 0:00:29]} 26. Rd1 {[%emt 0:08:19]} Ne7 {[%emt 0:00:13]} 27. Ng5 {[%emt 0:02:52]} Nf5 {[%emt 0:10:33]} 28. Nxh7+ {[%emt 0:01:02]} Ke7 {[%emt 0:00:04]} (28... Kg8 $5 29. Ng5 Nd4 $11) 29. Ng5 {[%emt 0:01:04]} Nd4 {[%emt 0:00:13] Inhibits Nf3.} 30. Re3 {[%emt 0:04:28]} Rbc6 {[%emt 0:00:22]} 31. Nf3 {[%emt 0:01:27]} Nb3 {[%emt 0:01:12]} 32. Re2 {[%emt 0:04:14]} Rc2 {[%emt 0:00:48]} 33. Rde1 {[%emt 0:03:06]} Rxe2 {[%emt 0:06:36] Black is more active.} ({Black should play} 33... d4 $1 $15 34. Rxc2 Rxc2) 34. Rxe2 $15 {[%emt 0:00:08][%mdl 4096] Endgame KRN-KRN} Rc1+ {[%emt 0:00:04]} 35. Kg2 {[%emt 0:02:18]} Rb1 {[%emt 0:03:03]} 36. Rc2 {[%emt 0:01:37]} Kd7 {[%emt 0:01:47] Prevents Rc7+.} (36... d4 $11 {remains equal.}) 37. Nd2 {[%emt 0:01:02]} (37. h4 $16) 37... Re1 $1 $11 {[%emt 0:01:06]} 38. Nxb3 {[%emt 0:03:18]} axb3 {[%emt 0:00:02] KR-KR} 39. Rc3 {[%emt 0:00:06]} Rxe5 {[%emt 0:00:19]} 40. Kf1 {[%emt 0:00:05] Prevents Re2.} d4 {[%emt 0:00:53]} 41. Rd3 {[%emt 0:01:11]} Rd5 {[%emt 0:00:31]} 42. f4 {[%emt 0:00:21]} f6 {[%emt 0:01:30] Threatens to win with ...e5.} 43. Ke2 {[%emt 0:00:09]} e5 {[%emt 0:00:19]} 44. fxe5 {[%emt 0:01:15]} fxe5 {[%emt 0:00:01] And now ...Ke6 would win.} 45. Kf3 $1 {[%emt 0:00:04]} Ke6 {[%emt 0:00:14]} 46. Ke4 {[%emt 0:00:44]} Rd8 {[%emt 0:00:17] Hoping for ...Rh8.} 47. Rf3 {[%emt 0:01:40]} g6 {[%emt 0:00:12] Strongly threatening ...Rc8.} 48. g4 {[%emt 0:00:34]} Rh8 {[%emt 0:01:04]} 49. h3 {[%emt 0:00:05]} b5 {[%emt 0:00:08]} 50. Rxb3 {[%emt 0:02:07]} Rc8 {[%emt 0:00:04] White must now prevent ...Rc1.} (50... Rf8 $5 51. Rf3 Rxf3 52. Kxf3 g5 $11) 51. Rf3 $2 {[%emt 0:00:44][%mdl 8192] Black keeps a firm grip on the game.} (51. a4 $1 $11 bxa4 52. Ra3) 51... Rc1 $19 {[%emt 0:01:21] ( -> ...Re1+)} 52. g5 $2 {[%emt 0:01:32]} (52. Rf8 $19 Re1+ 53. Kd3) 52... Re1+ {[%emt 0:00:39]} 53. Kd3 {[%emt 0:00:03]} e4+ {[%emt 0:03:34]} 54. Kd2 {[%emt 0:00:06]} Rh1 {[%emt 0:02:45]} (54... exf3 $142 55. Kxe1 Kf5 56. h4 d3 57. b3 Ke4 58. h5 Ke3 59. Kd1 f2 60. Kc1 f1=Q+ 61. Kb2 d2 62. a4 d1=Q 63. axb5 Qfe2+ 64. Kc3 Qde1#) 55. Rf8 {[%emt 0:01:29]} Rh2+ {[%emt 0:00:08]} 56. Kc1 {[%emt 0:00:06]} Rh1+ $2 {[%emt 0:04:11]} (56... Ke5 $19 57. Re8+ Kf4 58. Rf8+ Ke3) 57. Kc2 {[%emt 0:00:42][%mdl 8192]} (57. Kd2 $11 Rh2+ 58. Ke1) 57... d3+ {[%emt 0:00:11]} 58. Kd2 {[%emt 0:00:48]} Kd5 {[%emt 0:03:55]} 59. Rd8+ {[%emt 0:01:38]} Kc4 {[%emt 0:00:33]} 60. Rc8+ {[%emt 0:01:41]} Kb3 {[%emt 0:02:04]} 61. Re8 {[%emt 0:01:41]} Rh2+ {[%emt 0:00:00][%mdl 64] Skewer} 62. Kd1 {[%emt 0:00:49]} Kxb2 {[%emt 0:00:23] Black mates.} 63. Rxe4 {[%emt 0:01:00] [#]} Kc3 $1 {[%emt 0:00:06]} 64. Re8 {[%emt 0:00:13]} Rh1+ {[%emt 0:00:08]} 65. Re1 {[%emt 0:00:03]} Rxe1+ {[%emt 0:00:07] Weighted Error Value: White=0.76/Black=0.28 (precise)} 0-1

[Event "12th WLC Weekend 2022"]
[Site "Eindhoven"]
[Date "2022.05.15"]
[Round "5.3"]
[White "Baselmans, Sam"]
[Black "Bruil, Rembrandt"]
[Result "1/2-1/2"]
[ECO "B25"]
[WhiteElo "2175"]
[BlackElo "2122"]
[Annotator "TA"]
[PlyCount "78"]
[EventDate "2022.05.13"]
[EventType "swiss"]
[EventCountry "NED"]
[SourceTitle "playchess.com"]
[Source "ChessBase"]
[SourceQuality "1"]
[TimeControl "5400+30"]

{[%evp 20,78,0,-9,14,14,13,14,16,4,1,0,15,-12,-12,-55,0,0,16,-10,46,0,0,0,5,0,10,-10,0,0,0,0,0,0,180,88,106,77,92,55,42,15,66,44,55,66,42,57,43,-57,-54,-58,-54,-54,0,-30,0,0,0,-72,0]} 1. e4 {[%emt 0:00:39]} c5 {[%emt 0:00:04]} 2. Nc3 {[%emt 0:00:11]} Nc6 {[%emt 0:00:06]} 3. g3 {[%emt 0:00:04]} g6 {[%emt 0:00:14]} 4. Bg2 {[%emt 0:00:07]} Bg7 {[%emt 0:00:07]} 5. d3 {[%emt 0:00:06]} e6 {[%emt 0:00:44]} 6. Be3 {[%emt 0:00:28]} d6 {[%emt 0:00:19]} 7. f4 {[%emt 0:00:07]} Nge7 {[%emt 0:01:29]} 8. Nf3 {[%emt 0:00:12]} Rb8 {[%emt 0:03:06]} 9. O-O {[%emt 0:01:05]} O-O {[%emt 0:05:49] is the legacy move (9...Nd4).} 10. Rb1 {[%emt 0:00:33] has lost popularity (10.Qd2).} b5 $1 {[%emt 0:03:25] The main line 10...b5 scores better than 10...Nd4.} 11. a3 {[%emt 0:03:11]} f5 {[%emt 0:06:53] B25: Closed Sicilian: 3 g3, lines without early Be3.} 12. Qd2 {[%emt 0:07:23][%cal Oe4e5] [#]} b4 $146 {[%emt 0:05:38]} ({Predecessor:} 12... a5 13. Nd1 Nd4 14. Nxd4 cxd4 15. Bf2 Ba6 16. Re1 e5 17. c3 dxc3 18. Nxc3 Qd7 {0-1 (35) Putz,G (1599)-Golder,W (1872) Germany 2011}) 13. axb4 {[%emt 0:01:07]} cxb4 {[%emt 0:00:48] The position is equal.} 14. Ne2 {[%emt 0:00:21]} a5 {[%emt 0:05:42]} 15. c3 {[%emt 0:01:27]} Bd7 {[%emt 0:01:17]} 16. Bf2 {[%emt 0:05:40]} a4 {[%emt 0:02:38]} 17. Qc2 {[%emt 0:07:45]} Ra8 {[%emt 0:07:01]} (17... Qa5 $1 $15) 18. Ra1 {[%emt 0:01:35]} Qc7 {[%emt 0:02:17]} (18... Qc8 {is interesting.} 19. Rxa4 Rxa4 20. Qxa4 Nd4) 19. exf5 {[%emt 0:02:23]} gxf5 {[%emt 0:03:30]} (19... Nxf5 $11 20. Rxa4 Rxa4 21. Qxa4 bxc3 22. bxc3 Ncd4 $1) 20. Rfe1 {[%emt 0:00:48]} (20. Rxa4 $14 {is more appropriate.} b3 21. Qxb3) 20... Nd5 $11 {[%emt 0:03:12]} 21. c4 {[%emt 0:07:56]} b3 {[%emt 0:03:21]} 22. Qd2 {[%emt 0:00:09]} Ndb4 {[%emt 0:00:34]} 23. Nfd4 {[%emt 0:07:05][%cal Bf3d4,Bd4b3,Bb3d4][%mdl 32] Inhibits Nc2.} (23. Ned4 {is more complex.} Bxd4 24. Nxd4 Nxd4 25. Bxd4 Nc2 26. Bxa8 Rxa8 27. Qf2) 23... Ra6 {[%emt 0:03:12]} 24. Bxc6 {[%emt 0:06:35]} Nxc6 {[%emt 0:00:14]} 25. Nxb3 $1 {[%emt 0:00:12]} Rb8 {[%emt 0:04:42]} (25... Qb7 $5 26. Nbd4 Nxd4 27. Bxd4 (27. Nxd4 Rb8 $11) 27... e5 $11) 26. Nbd4 {[%emt 0:02:39]} Nd8 $2 {[%emt 0:00:43] [#]} (26... Nxd4 $11 27. Nxd4 (27. Bxd4 Bxd4+ 28. Nxd4 Qb6 $11) 27... Qb7) 27. Nc3 {[%emt 0:02:05]} (27. b4 $1 $18 {is more deadly.}) 27... Qa5 {[%emt 0:05:56]} 28. Qc2 {[%emt 0:02:13]} Qb4 {[%emt 0:03:16]} 29. Reb1 {[%emt 0:07:32] White is more active.} d5 {[%emt 0:03:35]} 30. Na2 {[%emt 0:07:55] Pair of Knights!} Qb7 {[%emt 0:01:40]} ({Black should try} 30... Qf8 $11) 31. b4 $14 {[%emt 0:05:13] Hoping for b5.} axb3 {[%emt 0:02:54]} 32. Rxb3 {[%emt 0:00:08]} Qa8 {[%emt 0:00:06] aiming for ...Rxb3.} 33. Rxb8 {[%emt 0:00:22]} Qxb8 {[%emt 0:00:01]} 34. cxd5 {[%emt 0:01:56]} ({Better is} 34. Rb1 $14 Qa7 35. Nxf5) 34... Qa8 $1 $15 {[%emt 0:01:08]} 35. Qc7 {[%emt 0:04:48]} Ra7 {[%emt 0:01:01][%mdl 1024] Black has compensation.} 36. Qc5 {[%emt 0:04:48][%cal Od5e6]} Ra5 {[%emt 0:07:30]} (36... Rxa2 37. Rxa2 Qxa2 38. Qe7 Qxd5 39. Qxd8+ Kf7 40. Qb6 $11) (36... exd5 $15 37. Nc2 Rxa2 38. Rxa2 Qxa2) 37. Qb6 {[%emt 0:02:45][%cal Rd5e6]} Ra6 {[%emt 0:05:55]} (37... exd5 $5 {[%cal Rd8f7]} 38. Qd6 Ra7 $17) 38. Qc7 {[%emt 0:00:19]} Ra7 {[%emt 0:00:23]} 39. Qc5 {[%emt 0:00:05][%cal Od5e6]} Ra5 {[%emt 0:00:49] Weighted Error Value: White=0.21 (precise) /Black=0.25 (precise)} ({Much worse is} 39... Rxa2 40. Rxa2 Qxa2 41. Qe7 Qxd5 42. Qxd8+ Kf7 43. Nf3 $11) ({Black should play} 39... exd5 $17 40. Qe7 Nf7) 1/2-1/2

[Event "12th WLC Weekend 2022"]
[Site "Eindhoven"]
[Date "2022.05.15"]
[Round "5.4"]
[White "Jansen, Bob"]
[Black "Boeren, Jurriaan"]
[Result "1-0"]
[ECO "D00"]
[WhiteElo "2174"]
[BlackElo "1778"]
[Annotator "TA"]
[PlyCount "33"]
[EventDate "2022.05.13"]
[EventType "swiss"]
[EventCountry "NED"]
[SourceTitle "playchess.com"]
[Source "ChessBase"]
[SourceQuality "1"]
[TimeControl "5400+30"]

{[%evp 9,33,-33,44,39,48,16,12,21,30,25,78,29,23,18,77,30,63,-26,43,49,192,172,359,350,344,301]} 1. d4 {[%emt 0:08:22]} d5 {[%emt 0:00:12]} 2. Nc3 {[%emt 0:00:54]} Nf6 {[%emt 0:00:25]} 3. Bf4 {[%emt 0:00:06]} e6 {[%emt 0:00:56][%cal Be7e6,Be6e5][%mdl 32]} 4. e3 {[%emt 0:00:06]} a6 {[%emt 0:00:26]} 5. g4 {[%emt 0:04:35]} Nxg4 {[%emt 0:17:27]} 6. Qxg4 $14 {[%emt 0:11:05] Strongly threatening Qg3. D00: 1 d4 d5: Unusual lines.} e5 $1 {[%emt 0:01:19] [#]} 7. Qh5 $146 {[%emt 0:01:29]} ({Predecessor:} 7. Qg5 exf4 8. Qxd8+ Kxd8 9. Nxd5 fxe3 10. Nxe3 g6 11. Nf3 f6 12. O-O-O Bh6 13. Bg2 {0-1 (36) Free,G (1926)-Hilby,C (2420) Irving 2018}) 7... exf4 {[%emt 0:00:53]} 8. Nxd5 {[%emt 0:00:54] Hoping for Qe5+. The position is equal.} Bd6 {[%emt 0:02:43] Against Qe5+} 9. O-O-O {[%emt 0:02:57]} Be6 {[%emt 0:16:02]} (9... fxe3 $11 10. fxe3 c6) 10. Nc3 {[%emt 0:02:48] White is more active.} (10. Nxf4 $16 Bxa2 11. Qa5 Bxf4 12. Qxa2) 10... fxe3 $11 {[%emt 0:13:49]} 11. fxe3 {[%emt 0:01:22]} O-O {[%emt 0:05:53]} (11... Nd7 $11 {remains equal.}) 12. e4 {[%emt 0:04:19]} ({Much weaker is} 12. Bd3 g6 13. Qh6 Re8 $11) ({White should play} 12. Nf3 $16) 12... g6 {[%emt 0:04:24]} 13. Qe2 {[%emt 0:06:25]} (13. Qh6 $14) 13... Qg5+ {[%emt 0:02:43]} (13... c5 $1 $11 14. d5 Bc8) 14. Kb1 $14 {[%emt 0:00:52] Black must now prevent e5.} Bg4 {[%emt 0:06:48] [#]} (14... c5 $14) 15. Qg2 $1 $18 {[%emt 0:03:29]} ({Much less strong is} 15. Nf3 $6 Qh5 16. Bg2 Re8 $16) 15... Bf4 $2 {[%emt 0:01:28] [#]} (15... Qh4 {was necessary.}) 16. h4 $1 {[%emt 0:07:25]} Qh5 {[%emt 0:01:21] [#]} 17. Nd5 $1 {[%emt 0:00:03] Weighted Error Value: White=0.25 (precise) /Black=0.58} 1-0

[Event "12th WLC Weekend 2022"]
[Site "Eindhoven"]
[Date "2022.05.15"]
[Round "5.5"]
[White "Grooten, Herman"]
[Black "Klapwijk, Bram"]
[Result "1-0"]
[ECO "E04"]
[WhiteElo "2286"]
[BlackElo "2245"]
[Annotator "TA"]
[PlyCount "95"]
[EventDate "2022.05.13"]
[EventType "swiss"]
[EventCountry "NED"]
[SourceTitle "playchess.com"]
[Source "ChessBase"]
[SourceQuality "1"]
[TimeControl "5400+30"]

{[%evp 10,95,30,22,41,34,36,-28,40,25,45,47,115,109,158,116,130,106,98,103,109,124,115,54,50,0,0,0,10,12,82,78,80,90,97,85,303,254,241,239,228,247,244,241,339,267,456,355,345,280,289,286,409,299,351,241,264,261,266,246,233,231,241,238,236,201,199,189,176,130,360,247,454,429,413,361,494,486,481,472,1212,1179,1160,1178,1313,1272,1289,1223]} 1. d4 {[%emt 0:00:44]} d5 {[%emt 0:00:18][%cal Bd7d5,Bd5c4][%mdl 32]} 2. c4 {[%emt 0:00:14]} c6 {[%emt 0:00:04]} 3. Nf3 {[%emt 0:00:08]} Nf6 {[%emt 0:00:04]} 4. g3 {[%emt 0:00:21]} e6 {[%emt 0:04:01]} 5. Bg2 {[%emt 0:01:29]} dxc4 {[%emt 0:03:30]} 6. Ne5 {[%emt 0:03:19]} b5 {[%emt 0:01:35] E04: Open Catalan: 5 Nf3.} 7. a4 {[%emt 0:00:30] axb5 is the strong threat.} Nd5 {[%emt 0:01:03]} 8. Nc3 {[%emt 0:04:27]} (8. O-O $14) 8... b4 {[%emt 0:18:45]} (8... f6 $11 9. Ng4 b4 10. Nxd5 cxd5) 9. Ne4 $14 {[%emt 0:09:18]} Be7 {[%emt 0:21:04] Inhibits Ng5.} 10. Nxc4 {[%emt 0:01:16] [#]} f6 $146 {[%emt 0:06:38]} ({Better is} 10... Ba6 $14 11. Qc2 b3 12. Qxb3 O-O) ({Predecessor:} 10... O-O 11. O-O Nd7 12. Bf4 Nxf4 13. gxf4 Ba6 14. Rc1 Rc8 15. Re1 f5 16. Ned2 c5 {½-½ (44) Gleizerov,E (2589)-Pridorozhni,A (2493) Cappelle la Grande 2004}) 11. O-O {[%emt 0:06:46]} Na6 {[%emt 0:02:03]} (11... Ba6 $142) 12. Qc2 {[%emt 0:04:00][%cal Oc4d6]} O-O {[%emt 0:07:50]} 13. Rd1 {[%emt 0:00:49]} Rb8 {[%emt 0:02:57]} 14. Ned2 {[%emt 0:07:53] Hoping for Nb3.} b3 {[%emt 0:09:08]} 15. Nxb3 {[%emt 0:01:00]} Nab4 {[%emt 0:00:09]} 16. Qd2 {[%emt 0:00:58]} (16. Qe4 $16) 16... Ba6 {[%emt 0:00:35]} 17. Nca5 {[%emt 0:03:00]} f5 {[%emt 0:01:11]} 18. e4 $1 {[%emt 0:05:11]} fxe4 {[%emt 0:00:05]} 19. Bxe4 {[%emt 0:00:06]} Qc7 {[%emt 0:12:18] [#]} (19... Bd6 $11) 20. Qe1 $1 $16 {[%emt 0:02:53]} Bd6 {[%emt 0:00:42]} 21. Bd2 {[%emt 0:02:10]} Rbe8 {[%emt 0:04:31]} 22. Rac1 {[%emt 0:01:14]} Bb7 $2 {[%emt 0:02:13]} (22... Nd3 $16 23. Bxd3 Bxd3) 23. Nxb7 {[%emt 0:03:42]} Qxb7 {[%emt 0:00:03]} 24. Na5 {[%emt 0:02:31][%cal Bb3a5,Ba5c4,Bc4e5][%mdl 32]} Qc7 {[%emt 0:01:08]} 25. Nc4 {[%emt 0:00:42]} Be7 {[%emt 0:00:20]} 26. Bb1 {[%emt 0:03:46] This bishop pair is nice.} Kh8 {[%emt 0:00:43]} (26... Bd6 $142 27. Be4 (27. Qe4 g6 $18) 27... Re7) 27. Ne5 {[%emt 0:05:25] [#] Strongly threatening Qf1.} a5 $2 {[%emt 0:00:20]} (27... Bd6 {is a better defense.} 28. Bxb4 Nxb4 29. Nxc6 Qb7) 28. Qe4 {[%emt 0:01:24][%csl Gb1][%cal Re4h7]} g6 {[%emt 0:00:30]} 29. Qg4 {[%emt 0:08:06]} Bf6 {[%emt 0:00:34]} 30. Re1 {[%emt 0:00:41][%cal Bd1e1,Be1e4,Be4e5][%mdl 32]} Bg7 {[%emt 0:00:35]} (30... Qg7 $142 31. Re2 (31. Nxc6 Nxc6 32. Rxc6 Bxd4 $16) 31... Bxe5) 31. Qh3 {[%emt 0:02:26] Threatening mate with Nxg6+.} ({Weaker is} 31. Bxg6 hxg6 32. Nxg6+ Kg8 33. Nxf8 Rxf8 $18) 31... Kg8 {[%emt 0:00:17]} 32. Re4 {[%emt 0:01:06]} Bxe5 {[%emt 0:00:43]} 33. Rxe5 {[%emt 0:00:44]} ({Don't do} 33. Bxb4 $6 Nxb4 34. Rxe5 Qb6 $16) 33... Qa7 {[%emt 0:00:24][%cal Of8f2]} 34. Qh4 {[%emt 0:04:29]} Qf7 {[%emt 0:00:31]} 35. Re2 {[%emt 0:01:45] Active counter play!} Qf3 {[%emt 0:00:31]} 36. Qe4 {[%emt 0:01:04]} Qb3 {[%emt 0:00:08]} 37. h4 {[%emt 0:02:34]} Nf6 {[%emt 0:00:52]} 38. Qe3 {[%emt 0:04:36]} Qxa4 {[%emt 0:00:24]} 39. Qg5 {[%emt 0:01:43]} (39. Bxb4 $18 Qxb4 40. Rxc6) 39... Re7 $2 {[%emt 0:00:40] Loses the game.} (39... Nbd5 $16) 40. h5 {[%emt 0:00:34]} Qb3 $2 {[%emt 0:00:28]} (40... Qb5 41. Qxb5 cxb5 42. hxg6 hxg6) 41. hxg6 $18 {[%emt 0:00:30]} hxg6 {[%emt 0:00:31]} 42. Bf4 {[%emt 0:01:58][%cal Ob1f5] Black must now prevent Bf5!} Rg7 {[%emt 0:00:32]} 43. Bd6 {[%emt 0:01:14] White is clearly winning.} Nh7 {[%emt 0:00:28]} 44. Qxa5 {[%emt 0:00:38]} Qf3 {[%emt 0:00:31]} (44... Nd5 $142 45. Bxf8 Nxf8) 45. Bxf8 {[%emt 0:00:19]} Nxf8 {[%emt 0:00:31]} 46. Re3 {[%emt 0:00:17]} Qg4 {[%emt 0:00:17]} 47. Qxb4 {[%emt 0:00:44]} Rh7 {[%emt 0:00:06]} 48. Be4 {[%emt 0:00:26] Weighted Error Value: White=0.27 (precise) /Black=0.51} 1-0